Cogmind - Beta 13 @@@ ROGUE MODE // 2024.02.27 @ 05:32:35 Player: ktur Result: Destroyed by Piercing Trap Performance ------------- Evolutions (0) 0 Regions Visited (2) 400 Robots Destroyed (26) 130 Value Destroyed (569) 569 Prototype IDs (0) 0 Alien Tech Used (0) 0 Bonus (0) 0 TOTAL SCORE: 1099 Bonus ------- None Cogmind --------- Core Integrity 0/250 Matter 280/300 Energy 123/125 System Corruption 0% Temperature Cool (0) Movement Rolling (90) Location -10/Subcaves Parts ------- > --- POWER (1) -------- Light Ion Engine > --- PROPULSION (2) --- Wheel Compact Wheel > --- UTILITY (2) ------ Disposable Heat Sink Medium Storage Unit > --- WEAPON (2) ------- Spread Laser Spread Laser > --- INVENTORY (10) --- High-capacity Storage Unit Huge Storage Unit Improved Terrain Scanner Spread Laser Spread Laser Assault Rifle Assault Rifle Assault Rifle Assault Rifle Peak State ------------ > --- POWER ------------ Ion Engine > --- PROPULSION ------- Light Treads Light Treads > --- UTILITY ---------- Disposable Heat Sink Medium Storage Unit > --- WEAPON ----------- Spread Laser Spread Laser > --- INVENTORY -------- Compact Wheel High-capacity Storage Unit Huge Storage Unit Improved Terrain Scanner Spread Laser Spread Laser Assault Rifle Assault Rifle Assault Rifle Assault Rifle [Rating: 11] Favorites ----------- Power Ion Engine Engine Ion Engine Propulsion Light Treads Treads Light Treads Wheel Compact Wheel Utility Medium Storage Unit Device Heat Sink Storage Medium Storage Unit Weapon Spread Laser Energy Gun Spread Laser Ballistic Gun Light Assault Rifle Build | -11 -10 -10 ------- Run | Yrd Mat Sub Slots Evolved . | . . . Power . | . . . Propulsion . | . . . Utility . | . . . Weapon . | . . . Parts Attached 24 | 7 12 5 Power 4 | 1 2 1 Engine 4 | 1 2 1 Core . | . . . Reactor . | . . . Propulsion 8 | 2 4 2 Treads 6 | 2 4 . Leg . | . . . Wheel 2 | . . 2 Hover . | . . . Flight . | . . . Utility 6 | 2 2 2 Device 3 | . 1 2 Storage 3 | 2 1 . Processor . | . . . Hackware . | . . . Protection . | . . . Artifact . | . . . Weapon 6 | 2 4 . Energy Gun 4 | 1 3 . Energy Cannon . | . . . Ballistic Gun 2 | 1 1 . Ballistic Cannon . | . . . Launcher . | . . . Special Weapon . | . . . Impact Weapon . | . . . Slashing Weapon . | . . . Piercing Weapon . | . . . Special Melee Weapon . | . . . Unidentified Prototypes . | . . . Parts Lost 5 | . 2 3 Power 2 | . 1 1 Propulsion 2 | . . 2 Utility . | . . . Weapon 1 | . 1 . Highest Loss Streak 2 | . 2 2 To Critical Strikes . | . . . Average Slot Usage (%) 82 | . 81 89 Engine 6 | . 6 6 Treads 25 | . 27 19 Wheel 1 | . . 5 Device 6 | . 4 14 Storage 14 | . 14 14 Energy Gun 19 | . 17 28 Ballistic Gun 8 | . 10 . Naked Turns . | . . . Heaviest Build 22 | 13 22 22 Greatest Support 40 | 40 40 40 Greatest Overweight (x) 1 | . . 1 Average Overweight (x) . | . . . Largest Inventory Capacity 10 | 8 10 10 Average Capacity 9 | 6 9 10 Most Carried 10 | 5 10 10 Average Carried 8 | 2 8 9 Final Capacity 10 | 8 10 10 Final Carried 10 | 5 10 9 Class Distribution -------------------- 100% | Mutant Dominant Class ---------------- Mutant | -10/Materials Mutant | -10/Subcaves Resources | -11 -10 -10 ----------- Run | Yrd Mat Sub Matter Collected 458 | 274 163 21 Remotely . | . . . Salvage Created 735 | 97 453 185 Parts 39 | 3 22 14 Haulers Intercepted 2 | . 2 . Recyclers Shooed 2 | . 2 . Parts Field Recycled . | . . . Retrieved Matter . | . . . Parts Self-Destructed 7 | . . 7 Prevented . | . . . Kills | -11 -10 -10 ------- Run | Yrd Mat Sub Combat Hostiles Destroyed 21 | . 13 8 Guns 21 | . 13 8 Classes Destroyed 6 | 2 3 1 Tunneler 1 | 1 . . Hauler 2 | . 2 . Recycler 2 | 1 1 . Swarmer 9 | . 9 . Grunt 4 | . 4 . Subdweller 8 | . . 8 Best Kill Streak 10 | 2 10 3 Combat Bots Only 10 | . 10 3 Max Kills in Single Turn 2 | 1 2 1 Gunslinging 1 | . 1 . Exploded . | . . . Melee . | . . . Uniques/NPCs Destroyed . | . . . Combat | -11 -10 -10 -------- Run | Yrd Mat Sub Hostile Shots Fired 114 | . 85 29 Missed 25 | . 17 8 Damage Taken 1269 | . 621 648 Core 250 | . 131 119 Absorbed by Shields . | . . . Regen/Repaired (Parts) 113 | . 113 . Core Remaining (%) 100 | 100 . . Volleys Fired 90 | 4 60 26 Largest 2 | 2 2 2 Hottest 130 | 70 70 130 Shots Fired 176 | 8 119 49 Gun 176 | 8 119 49 Cannon . | . . . Launcher . | . . . Special . | . . . Kinetic 64 | 4 60 . Thermal 112 | 4 59 49 Explosive . | . . . Electromagnetic . | . . . Robot Hit Streak 18 | 2 14 18 Robot Miss Streak 5 | 1 4 5 Penetration Max . | . . . Secondary Targets 7 | . 5 2 Max Gunslinging Chain 1 | . 1 1 Shots Hit Robots 120 | 4 71 45 Core Hits 82 | 4 25 53 Critical Kills . | . . . Critical Parts Destroyed 1 | . 1 . Critical Strikes 9 | 1 8 . Burn 8 | 1 7 . Destroy 1 | . 1 . Melee Attacks . | . . . Impact . | . . . Slashing . | . . . Piercing . | . . . Sneak Attacks . | . . . Combat Hostiles . | . . . Follow-up Attacks . | . . . Damage Inflicted 1566 | 35 797 734 Guns 1540 | 35 771 734 Cannons . | . . . Explosions . | . . . Melee . | . . . Ramming 26 | . 26 . Kinetic 285 | 22 263 . Thermal 1255 | 13 508 734 Explosive . | . . . Electromagnetic . | . . . Impact . | . . . Slashing . | . . . Piercing . | . . . Highest Corruption . | . . . Average Corruption . | . . . Corruption Purged . | . . . Corruption Blocked . | . . . Overload Shots . | . . . Overflow Damage . | . . . Projectiles . | . . . Explosions . | . . . Melee . | . . . Knockbacks . | . . . Impact . | . . . Kinetic . | . . . Secondary . | . . . Self-Inflicted Damage . | . . . Shots . | . . . Rammed 8 | . 8 . Targets Rammed 8 | . 8 . Kicked . | . . . Crushed . | . . . Highest Temperature 351 | 40 351 42 Average Temperature 81 | 19 99 17 Received Heat Transfer 252 | . 132 120 Effects 3 | . 3 . Shutdowns 1 | . 1 . Energy Bleed 1 | . 1 . Short Circuit 1 | . 1 . Siege Activations . | . . . Robots Corrupted . | . . . Combat Hostiles . | . . . Parts Fried . | . . . Impact Corruptions . | . . . Robots Melted . | . . . Combat Hostiles . | . . . Parts Melted 6 | . 6 . Heat Transferred 2992 | 111 1961 920 Parts Sabotaged . | . . . Parts Stolen . | . . . Parts Stripped . | . . . Power Chain Reactions . | . . . Alert | -11 -10 -10 ------- Run | Yrd Mat Sub Peak Influence 395 | 10 395 . Initial 6 | . 6 . Average 136 | 8 154 . Maximum Alert Level 1 | . 1 . Low Security (%) 77 | 100 74 . Level 1 22 | . 25 . Level 2 . | . . . Level 3 . | . . . Level 4 . | . . . Level 5 . | . . . High Security . | . . . Max Security . | . . . Squads Dispatched 2 | . 2 . Investigation . | . . . Extermination . | . . . Reinforcement 2 | . 2 . Assault . | . . . Garrison . | . . . Intercept . | . . . Searches Triggered . | . . . Construction Impeded . | . . . Haulers Reinforced . | . . . Active Scanning Responses . | . . . Cargo Convoy Interrupts . | . . . Stealth | -11 -10 -10 --------- Run | Yrd Mat Sub Distress Signals 1 | . 1 . Communications Jammed . | . . . Distress Signals . | . . . Times Spotted 37 | . 28 9 Peak Tracking Total 9 | . 9 4 Tactical Retreats 1 | . 1 . Traps | -11 -10 -10 ------- Run | Yrd Mat Sub Traps Triggered 5 | . 2 3 Indirectly . | . . . Trap Hack Attempts . | . . . Triggered . | . . . Disarmed . | . . . Reprogrammed . | . . . Reused . | . . . Traps Extracted . | . . . Installed . | . . . Triggered . | . . . Machines | -11 -10 -10 ---------- Run | Yrd Mat Sub Machines Disabled . | . . . Max in Single Turn . | . . . Machines Repaired . | . . . Machines Dismantled . | . . . Machines Sabotaged . | . . . Overloaded Fab Kills . | . . . Hacking | -11 -10 -10 --------- Run | Yrd Mat Sub Machines Accessed 4 | . 4 . Terminals 3 | . 3 . Fabricators . | . . . Repair Stations 1 | . 1 . Recycling Units . | . . . Scanalyzers . | . . . Garrison Access . | . . . Total Hacks 9 | . 9 . Successful 7 | . 7 . Failed 2 | . 2 . Catastrophic . | . . . Database Lockouts . | . . . Manual 6 | . 6 . Terminals 7 | . 7 . Fabricators . | . . . Repair Stations 2 | . 2 . Recycling Units . | . . . Scanalyzers . | . . . Garrison Access . | . . . Terminal Hacks 4 | . 4 . Robot Analysis 2 | . 2 . Locate Traps 1 | . 1 . Hauler Manifests 1 | . 1 . Fabricator Hacks . | . . . Repair Station Hacks 2 | . 2 . Scan Component 1 | . 1 . Repair 1 | . 1 . Recycling Unit Hacks . | . . . Scanalyzer . | . . . Garrison Access Hacks . | . . . Unauthorized Hacks 1 | . 1 . Terminals 1 | . 1 . Operators 1 | . 1 . Fabricators . | . . . Repair Stations . | . . . Recycling Units . | . . . Scanalyzers . | . . . Garrison Access . | . . . Data Cores Recovered . | . . . Used . | . . . Hacking Detections 3 | . 3 . Full Trace Events . | . . . Feedback Events . | . . . Feedback Blocked . | . . . Robot Schematics Acquired . | . . . Robots Built . | . . . Authchips . | . . . Time . | . . . Total Robot Build Rating . | . . . Part Schematics Acquired . | . . . Parts Built . | . . . Authchips . | . . . Time . | . . . Total Part Build Rating . | . . . Parts Repaired 1 | . 1 . Time 36 | . 36 . Parts Recycled . | . . . Recycled Matter . | . . . Retrieved Matter . | . . . Retrieved Components . | . . . Parts Scanalyzed . | . . . Part Schematics Acquired . | . . . Parts Damaged . | . . . Bothacking | -11 -10 -10 ------------ Run | Yrd Mat Sub Used RIF Installer . | . . . Robots Hacked . | . . . Non-combat . | . . . Combat . | . . . Robot Hacks Applied . | . . . Relay Couplers Released . | . . . Fabnet Peak Effective % . | . . . Robots Rewired . | . . . Allies Hacked . | . . . Hacks Repelled . | . . . Allies | -11 -10 -10 -------- Run | Yrd Mat Sub Total Allies . | . . . Largest Group . | . . . Highest-Rated Group . | . . . Highest-Rated Ally . | . . . Total Orders . | . . . Ally Attacks . | . . . Total Damage . | . . . Kills . | . . . Allies Corrupted . | . . . Allies Melted . | . . . Intel | -11 -10 -10 ------- Run | Yrd Mat Sub Robot Analysis Total 2 | . 2 . Derelict Logs Recovered . | . . . Drone Launches . | . . . Drone Recoveries . | . . . Exploration | -11 -10 -10 ------------- Run | Yrd Mat Sub Turns Passed 1440 | 145 1044 251 Spaces Moved 684 | 80 498 106 Core 10 | 10 . . Treads 626 | 70 498 58 Legs . | . . . Wheels 48 | . . 48 Hover . | . . . Flight . | . . . Fastest Speed 50 | 50 160 90 Average Speed 153 | 146 160 131 Slowest Speed 160 | 160 160 160 Overloaded Moves . | . . . Propulsion Burnouts . | . . . Robots Hopped . | . . . Cave-ins Triggered . | . . . Exploration Rate (%) 22 | 4 55 7 Regions Visited 2 Branch Regions 1 Pre-discovered Areas . | . . . Known Exits Taken . | . . . Unknown Exits Taken 2 | 1 1 . Scrap Searched . | . . . Spaces Dug . | . . . Terrain Destroyed . | . . . Melee . | . . . Projectile . | . . . AOE . | . . . Terrain Rammed . | . . . Walls Destroyed . | . . . Machines Disabled . | . . . Actions | -11 -10 -10 --------- Run | Yrd Mat Sub Total 896 | 98 632 166 Wait 69 | . 42 27 Move 682 | 79 497 106 Hop . | . . . Pick Up 14 | 6 8 . Fast Attach 19 | 7 9 3 Attach 3 | . 2 1 Detach . | . . . Swap 2 | . 1 1 Drop 9 | 2 5 2 Fire 90 | 4 60 26 Melee . | . . . Ram . | . . . Kick . | . . . Crush 8 | . 8 . Escape Stasis . | . . . Rewire . | . . . Trap . | . . . Miscellaneous . | . . . Route ------- -11/Scrapyard -10/Materials (discovered 3 exits: [*Mat] / [*Min] / [*Sub]) -10/Subcaves History --------- Turn | Location | Event 6 | -11/Scrapyard | Discovered new exit (range 15) 146 | -11/Scrapyard | Entered Materials 303 | -10/Materials | Discovered new exit (range 9) 318 | -10/Materials | Build established: Mutant 469 | -10/Materials | Destroyed 10 combat bots 504 | -10/Materials | Core integrity fell below 50% 543 | -10/Materials | Discovered new exit (range 12) 704 | -10/Materials | Repaired Broken Lgt. Treads 1024 | -10/Materials | Discovered new exit (range 8) 1190 | -10/Materials | Entered Subcaves 1265 | -10/Subcaves | Ambushed by Subdweller buried in earth 1265 | -10/Subcaves | Ambushed by Subdweller buried in earth 1357 | -10/Subcaves | Ambushed by Subdweller buried in earth 1436 | -10/Subcaves | Core integrity fell below 20% 1441 | -10/Subcaves | Destroyed by Piercing Trap Last Messages --------------- 01357_ 0T-5K6(u) cries out in pain. 01357_ 0T-5K6(u) destroyed. 01357_ Lgt. Treads destroyed. 01358_ ZO-S5V(R): "NAT20!" 01365_ UN-URE(R) destroyed. 01365_ Switching to secondary target: ZO-S5V(R). 01373_ ZO-S5V(R) affixes Scrap Shield Fragment to Scrap Shield. 01383_ Lgt. Treads destroyed. 01385_ ZO-S5V(R) destroyed. 01392_ Acquired 10 matter. 01404_ Acquired Wheel. 01406_ Acquired Lgt. Ion Engine. 01435_ Triggered Piercing Trap. 01435_ Spikes shoot up from the floor. 01435_ Critical hit (Impale). 01439_ Triggered Piercing Trap. 01439_ Spikes shoot up from the floor. 01439_ Critical hit (Impale). 01441_ Triggered Piercing Trap. 01441_ Spikes shoot up from the floor. Map ----- +----------------------------------------------------+ | #????????????????????????????????????????????????? | | ###??????????????????????????????????????????????? | | ""#??????????????????????????????????????????????? | | "#??????????????????????????????????????????????? | | "#??????????????????????????????????????????????? | | "#??????????????????????????????????????????????? | | "##??????????????????????????????????????????????? | | "#????????####???????????????????????????????????? | | "#???????? ##??????????????????????????????????? | | ##??????? ##?????????????????????????????????? | | ##???### ##??#?????????????????????????????? | | #### #? ##????????????????????????????? | | ### ###??????????????????????????? | | ? ??????????????????????????? | | ## # ?? ??????????????????????????? | | ## # ??? ??????????????????????????? | | " # #????# ??????????????????????????? | | ##### #???## ?#????????????????????????? | | ##### ###??? ?????????????????????????? | | # ## ##### ##????????????????????????? | | # ## # ####?????????????????????? | | ## #?????????????????????? | | ?# #?????????????????????? | | ?## ## ### #?????????????????????? | | ??###### #### #### ### ## #????????????? | | ???????# ##?# ## @ ????????? | | ???????####??## ^ ????????? | | ??????????????# # ##### ###### ????????? | | ??????????????####### ##??????#?????????????????? | | ????????????????????####?????????????????????????? | | ?????????????????????????????????????????????????? | | ?????????????????????????????????????????????????? | | ?????????????????????????????????????????????????? | | ?????????????????????????????????????????????????? | | ?????????????????????????????????????????????????? | | ?????????????????????????????????????????????????? | | ?????????????????????????????????????????????????? | | ?????????????????????????????????????????????????? | | ?????????????????????????????????????????????????? | | ?????????????????????????????????????????????????? | | ?????????????????????????????????????????????????? | | ?????????????????????????????????????????????????? | | ?????????????????????????????????????????????????? | | ?????????????????????????????????????????????????? | | | | | | | | | | | | | +----------------------------------------------------+ Best States ------------- Heat Dissipation 35 Coolant Potential 50 Energy Generation 10 Energy Capacity 250 Matter Stores 300 Matter Capacity 300 Sight Range 16 Terrain Scan Density 10 Evasion (%) 50 Recoil Reduction 2 Item Schematics ----------------- None Robot Schematics ------------------ None Fabricated ------------ Nothing Alien Tech Used ----------------- None Achievements -------------- None Challenges ------------ None Game ------ Seed ArmorLightScanner Manual? 0 Play Time 00:07:29 Cumulative 753.0 hours Start 2024.02.27 @ 05:26:36 End 2024.02.27 @ 05:32:35 Sessions 1 Manual Loads 0 Difficulty Rogue Special Mode None Game No. 685 Rogue 685 Adventurer 0 Explorer 0 Win Type - Total 38 Types 14/3/11/2/0/0/5/2/1 Lore% 92 Gallery% 93 Achievement% 84 Wizard Run 0 Options --------- Layout 0 ASCII 0 Keyboard 0 Movement Numpad Keybinds 0 Fullscreen 1 Font 18/Smallcaps Map View 76x50 Zoom Use 0% Tactical HUD 1 Map Filters NONE Filters NONE Steam 1 RUN: d58eb8a9-fadf-40b3-bfed-a7c389e84b85